bitfinex-derivatives/quotes_SOLF0:USTF0_20250816
["timestamp","ask_amount","ask_price","bid_price","bid_amount"]
[1755345967826,3.16,185.96,185.88,4.58562586]
[1755345968023,3.16,185.98,185.89,3.12]
[1755345968223,3.16,185.98,185.88,4.58562586]
[1755345968224,3.16,185.98,185.92,5.3747]
[1755345968426,3.16,185.96,185.94,3.12]
[1755345968625,3.16,186.03,185.94,3.12]
[1755345968836,3.16,186.01,185.94,3.12]
[1755345969035,3.16,185.99,185.88,4.58562586]
[1755345969240,3.16,185.99,185.89,3.12]
[1755345969629,499.47197728,186.04,185.95,3.12]
[1755345969630,4.45197728,186.04,185.95,3.12]
[1755345969933,16.16,186.14,185.95,3.12]
[1755345969934,3.16,186.02,185.95,3.12]
[1755345970234,3.16,186.02,185.98,3.12]
[1755345970843,4.45197728,186.06,185.94,3.12]
[1755345971138,3.16,186.04,185.94,3.12]
[1755345971438,3.16,186.02,185.94,3.12]
[1755345971637,3.16,186.0,185.94,3.12]
[1755345972539,3.16,186.03,185.95,3.12]
[1755345972835,3.16,186.01,185.95,3.12]
[1755345973039,3.16,185.99,185.96,3.12]
[1755345973237,3.16,185.99,185.97,3.12]
[1755345973536,4.45197728,186.05,185.96,3.12]
[1755345973736,3.16,186.03,185.96,3.12]
[1755345973938,4.24665854,186.02,185.96,3.12]
[1755345974136,3.16,186.03,185.96,3.12]
[1755345974338,3.16,186.07,185.99,3.12]
[1755345974538,3.16,186.05,185.99,3.12]
[1755345974730,3.16,186.03,185.99,3.12]
[1755345975331,3.16,186.03,185.95,3.12]
[1755345976335,4.25303777,186.02,185.95,3.12]
[1755345976540,4.25303777,186.01,185.95,3.12]
[1755345976739,4.45197728,186.06,185.93,9.96002586]
[1755345976940,3.16,186.04,185.94,3.12]
[1755345977141,3.16,186.02,185.94,3.12]
[1755345977439,3.16,186.0,185.94,3.12]
[1755345977639,3.16,185.98,185.94,3.12]
[1755345977836,4.45197728,186.02,185.94,3.12]
[1755345978034,3.16,185.95,185.94,3.12]
[1755345978438,4.45197728,186.02,185.94,3.12]
[1755345978740,3.07,186.0,185.94,3.12]
[1755345979035,3.07,185.98,185.95,3.01]
[1755345979238,3.07,185.97,185.96,3.01]
[1755345979538,3.07,186.02,185.96,3.01]
[1755345979739,3.07,185.99,185.97,3.01]
[1755345979949,3.07,185.98,185.97,3.01]
[1755345980137,3.07,185.98,185.9,3.01]
[1755345980331,4.45197728,186.03,185.93,3.01]
[1755345980536,3.07,186.01,185.93,3.01]
[1755345980736,3.07,185.99,185.93,3.01]
[1755345980939,3.07,185.97,185.91,3.01]
[1755345981446,3.07,185.95,185.92,3.01]
[1755345981645,4.45197728,186.01,185.9,3.01]
[1755345981838,3.07,185.94,185.9,3.01]
[1755345983443,3.07,185.94,185.9,8.3855]
[1755345983644,3.07,185.94,185.91,3.01]
[1755345984344,3.07,185.94,185.93,3.01]
[1755345984540,3.07,185.94,185.91,3.01]
[1755345984845,3.07,185.93,185.92,3.01]
[1755345985245,3.07,185.99,185.92,3.01]
[1755345985442,4.26118047,185.98,185.91,3.01]
[1755345985648,3.07,185.99,185.91,3.01]
[1755345986349,3.07,185.99,185.92,5.3747]
[1755345986542,3.07,185.99,185.93,3.01]
[1755345987140,3.07,185.99,185.93,5.3744]
[1755345987441,3.07,185.97,185.95,3.01]
[1755345988142,7.52197728,186.02,185.92,3.01]
[1755345988343,3.07,186.0,185.92,3.01]
[1755345988539,3.07,185.98,185.86,3.01]
[1755345988745,3.07,185.96,185.84,3.01]
[1755345988942,3.07,185.94,185.84,3.01]
[1755345989143,3.07,185.92,185.84,3.01]
[1755345989348,3.07,185.92,185.86,3.01]
[1755345990242,3.07,185.96,185.86,3.01]
[1755345990448,4.26665401,185.95,185.92,3.01]
[1755345990644,3.07,185.95,185.93,3.01]
[1755345990843,3.07,185.95,185.94,3.01]
[1755345991143,3.07,185.95,185.92,3.01]
[1755345991350,3.07,185.94,185.93,3.01]
[1755345991744,3.07,185.99,185.93,3.01]
[1755345992043,7.34007834,185.98,185.93,3.01]
[1755345992239,4.27007834,185.97,185.95,5.3739]
[1755345992438,3.07,185.96,185.94,3.01]
[1755345992642,3.07,185.96,185.87,4.58562586]
[1755345992643,4.27221943,185.95,185.88,3.01]
[1755345992948,3.07,185.93,185.88,3.01]
[1755345993244,4.27221943,185.92,185.88,3.01]
[1755345993449,4.45197728,185.96,185.88,3.01]
[1755345993649,3.07,185.89,185.88,3.01]
[1755345994050,3.07,185.94,185.88,3.01]
[1755345994350,3.07,185.92,185.86,3.01]
[1755345994648,3.07,185.95,185.87,3.01]
[1755345994848,3.07,185.93,185.87,3.01]
[1755345995047,7.34249967,185.92,185.87,3.01]
[1755345995249,4.45197728,185.96,185.87,3.01]
[1755345995250,3.07,185.95,185.88,3.01]
[1755345995448,4.27316972,185.94,185.88,3.01]
[1755345995645,4.27316972,185.93,185.89,3.01]
[1755345995950,4.27316972,185.92,185.89,3.01]
[1755345996146,3.07,185.91,185.89,3.01]
[1755345996652,3.07,185.91,185.83,82.32032032]
[1755345996848,3.07,185.91,185.9,3.01]
[1755345997052,3.07,185.91,185.84,3.01]
[1755345997456,3.07,185.91,185.86,3.01]
[1755345997654,3.07,185.89,185.87,3.01]
[1755345997850,3.07,185.94,185.84,3.01]
[1755345998056,3.07,185.92,185.84,3.01]
[1755345998255,3.07,185.9,185.84,3.01]
[1755345998858,3.07,185.9,185.79,4.58562586]
[1755345998859,3.07,185.88,185.8,3.01]
[1755345999155,3.07,185.86,185.8,3.01]
[1755346000546,3.07,185.88,185.83,5.3773]
[1755346000753,7.33773829,185.87,185.85,3.01]
[1755346001059,3.07,185.87,185.85,3.01]
[1755346001848,3.07,185.86,185.83,3.01]
[1755346002054,3.07,185.84,185.83,3.01]
[1755346004258,4.45197728,185.92,185.83,3.01]
[1755346004564,3.07,185.85,185.83,3.01]
[1755346005760,3.07,185.85,185.79,4.58562586]
[1755346005761,3.07,185.85,185.84,3.01]
[1755346006857,3.07,185.91,185.84,3.01]
[1755346007063,4.26859442,185.9,185.84,3.01]
[1755346007262,4.26859442,185.89,185.84,3.01]
[1755346007563,3.07,185.91,185.84,3.01]
[1755346007759,7.33839399,185.9,185.85,3.01]
[1755346007959,3.07,185.91,185.85,3.01]
[1755346008659,3.07,185.91,185.86,3.13]
[1755346009052,4.45197728,185.96,185.86,3.13]
[1755346009257,2.94,185.94,185.84,3.13]
[1755346009457,2.94,185.92,185.84,3.13]
[1755346009652,4.45197728,185.96,185.84,3.13]
[1755346009653,2.94,185.9,185.84,3.13]
[1755346010258,2.94,185.92,185.86,3.13]
[1755346010761,2.94,185.92,185.83,4.58562586]
[1755346010762,2.94,185.92,185.87,3.13]
[1755346010965,2.94,185.91,185.87,3.13]
[1755346011964,2.94,185.95,185.87,3.13]
[1755346012260,7.20948282,185.94,185.87,3.13]
[1755346012467,4.26948282,185.93,185.87,3.13]
[1755346012662,2.94,185.94,185.87,8.5062]
[1755346012862,2.94,185.94,185.88,3.13]
[1755346013571,134.12,185.97,185.89,5.3756]
[1755346013772,2.94,185.93,185.9,3.13]
[1755346015465,2.94,185.93,185.91,3.13]
[1755346015673,2.94,185.96,185.88,3.13]
[1755346015872,2.94,185.94,185.88,3.13]
[1755346019281,2.94,185.94,185.86,3.13]
[1755346019481,2.94,185.92,185.86,3.13]
[1755346019778,2.94,185.9,185.82,3.13]
[1755346020571,2.94,185.94,185.85,4.58562586]
[1755346020783,7.1985958,185.93,185.86,3.13]
[1755346020979,2.94,185.93,185.86,3.13]
[1755346021382,2.94,185.93,185.87,5.3763]
[1755346021585,2.94,185.93,185.88,3.13]
[1755346021783,2.94,185.92,185.88,3.13]
[1755346022981,4.45197728,185.97,185.88,3.13]
[1755346023180,2.94,185.95,185.88,3.13]
[1755346023482,370.18200121,186.04,185.89,4.58562586]
[1755346023483,2.94,185.98,185.89,4.58562586]
[1755346023678,2.94,186.0,185.93,3.13]
[1755346023979,4.26209779,185.99,185.93,3.13]
[1755346024185,2.94,185.98,185.9,3.13]
[1755346024579,2.94,185.98,185.93,5.3746]
[1755346024774,2.94,185.98,185.94,3.13]
[1755346024978,138.33197728,186.03,185.94,3.13]
[1755346025179,2.94,186.01,185.94,8.5041]
[1755346025489,2.94,186.01,185.95,3.13]
[1755346026087,2.94,186.01,185.96,5.3737]
[1755346026287,2.94,186.01,185.97,3.13]
[1755346026583,2.94,186.01,185.97,8.5035]
[1755346026776,2.94,186.01,185.98,3.13]
[1755346026980,2.94,186.01,185.99,3.13]
[1755346027184,4.45197728,186.06,185.97,5.3735]
[1755346027185,2.94,186.05,185.98,3.13]
[1755346027383,4.26294449,186.04,185.98,3.13]
[1755346027688,2.94,186.01,186.0,3.13]
[1755346030778,2.94,186.06,186.0,3.13]
[1755346030981,2.94,186.04,186.0,3.13]
[1755346031186,2.94,186.03,186.0,3.13]
[1755346031387,2.94,186.02,186.01,3.13]
[1755346033890,2.94,186.02,185.94,3.13]
[1755346034088,2.94,186.02,185.95,3.13]
[1755346041089,2.94,186.02,185.97,2.98]
[1755346041282,2.94,186.02,185.98,2.98]
[1755346042582,2.94,186.02,185.99,2.98]
[1755346042792,2.96,186.01,185.97,2.98]
[1755346043594,2.96,186.0,185.97,2.98]
[1755346044495,2.91260799,186.08,185.96,2.91260799]
[1755346044690,2.96,185.99,185.96,2.91260799]
[1755346044994,2.96,186.07,185.97,2.98]
[1755346045194,4.24243956,186.06,185.97,2.98]
[1755346045395,2.96,186.04,185.97,2.98]
[1755346045597,4.24293685,186.03,185.97,2.98]
[1755346045893,2.96,186.02,185.97,2.98]
[1755346046094,2.96,186.02,185.98,2.98]
[1755346048195,2.96,186.02,185.94,2.98]
[1755346048396,4.24464702,186.01,185.94,2.98]
[1755346048593,2.96,186.02,185.94,2.98]
[1755346048790,2.96,186.0,185.94,2.98]
[1755346049793,4.2458061,185.99,185.94,2.98]
[1755346049998,2.96,185.97,185.94,2.98]
[1755346050298,2.96,185.97,185.95,2.98]
[1755346050596,2.96,185.96,185.95,2.98]
[1755346051191,2.96,185.96,185.93,5.89260799]
[1755346051393,2.96,185.96,185.93,2.98]
[1755346051595,2.96,185.96,185.92,2.98]
[1755346052293,4.24939431,185.95,185.92,2.98]
[1755346052498,2.96,185.94,185.92,2.98]
[1755346052797,2.96,185.93,185.92,2.98]
[1755346056193,2.96,185.98,185.92,2.98]
[1755346056396,2.96,185.96,185.92,2.98]
[1755346056594,2.96,185.97,185.92,2.91260799]
[1755346056791,2.96,185.97,185.93,2.98]
[1755346057194,2.96,185.99,185.94,2.98]
[1755346057391,4.25560388,185.98,185.95,2.91260799]
[1755346057593,2.96,186.01,185.96,2.98]
[1755346057794,2.96,186.04,185.98,2.91260799]
[1755346057995,2.96,186.02,185.99,2.98]
[1755346058395,4.25583923,186.01,185.99,2.98]
[1755346058603,2.96,186.05,185.99,2.98]
[1755346058795,2.96,186.03,185.99,2.98]
[1755346058998,2.96,186.01,185.98,2.98]
[1755346061300,2.96,186.01,185.97,2.91260799]
[1755346061301,4.45197728,186.06,185.97,2.91260799]
[1755346061504,2.96,186.04,185.98,2.98]
[1755346061703,4.25659274,186.03,185.98,2.98]
[1755346061896,4.45197728,186.06,185.98,2.98]
[1755346061897,7.21659274,186.02,185.98,8.3532]
[1755346062092,4.25659274,186.01,185.99,2.98]
[1755346062294,2.96,186.02,185.99,2.98]
[1755346062698,2.96,186.02,185.99,8.3529]
[1755346062909,2.96,186.04,186.0,2.91260799]
[1755346063197,4.25755427,186.03,186.01,2.98]
[1755346063407,2.96,186.04,186.01,2.98]
[1755346064402,2.96,186.07,186.0,2.91260799]
[1755346064604,2.96,186.05,185.99,2.98]
[1755346064800,4.25876568,186.04,185.99,2.98]
[1755346065005,2.96,186.02,186.0,2.98]
[1755346065200,2.96,186.01,185.98,2.91260799]
[1755346065406,2.96,186.04,185.98,2.98]
[1755346065605,2.96,186.02,185.96,2.98]
[1755346065803,2.96,186.0,185.97,2.98]
[1755346066004,2.96,185.99,185.95,2.91260799]
[1755346066304,2.96,185.99,185.98,2.98]
[1755346067409,2.96,186.03,185.98,2.98]
[1755346067607,2.96,186.01,185.98,2.98]
[1755346067803,7.22156962,186.0,185.99,2.98]
[1755346069713,4.26156962,186.0,185.99,2.98]
[1755346071003,3.05,185.99,185.96,2.9]
[1755346071209,3.05,185.98,185.97,2.9]
[1755346071403,4.45197728,186.04,185.97,2.9]
[1755346071615,3.05,185.99,185.98,2.9]
[1755346072212,3.05,186.01,185.95,2.91260799]
[1755346072414,3.05,186.01,186.0,2.9]
[1755346072612,7.31294798,186.01,186.0,2.9]
[1755346074917,4.26294798,186.01,186.0,2.9]
[1755346075314,7.31294798,186.01,186.0,2.9]
[1755346076115,7.31294798,186.01,185.95,8.28660799]
[1755346076315,3.05,186.0,185.99,2.9]
[1755346076516,7.31323,186.0,185.99,2.9]
[1755346080720,4.26323,186.0,185.95,2.91260799]
[1755346080921,4.26308691,185.99,185.96,2.9]
[1755346081218,3.05,185.98,185.96,2.9]
[1755346081421,4.45197728,186.03,185.96,2.9]
[1755346081621,3.05,185.99,185.96,2.9]
[1755346083823,3.05,186.02,185.96,2.9]
[1755346084120,3.05,186.0,185.97,2.9]
[1755346084318,3.05,185.98,185.97,2.9]
[1755346084718,3.05,185.98,185.85,361.2]
[1755346084719,3.05,185.97,185.91,2.9]
[1755346084921,3.05,185.97,185.92,2.9]
[1755346085116,4.26276442,185.96,185.92,2.9]
[1755346085418,3.05,185.95,185.92,2.9]
[1755346086224,3.05,186.0,185.92,2.9]
[1755346086426,3.05,185.98,185.92,2.9]
[1755346086624,3.05,185.96,185.92,8.2747]
[1755346086821,4.45197728,186.01,185.93,2.9]
[1755346087020,3.05,185.99,185.93,2.9]
[1755346087223,3.05,185.97,185.93,2.9]
[1755346087622,3.05,185.97,185.94,2.9]
[1755346087824,4.45197728,186.01,185.95,2.9]
[1755346088124,3.05,185.99,185.95,2.9]
[1755346088323,3.05,185.97,185.95,2.9]
[1755346088524,3.05,185.96,185.95,2.9]
[1755346089722,4.45197728,186.01,185.91,2.91260799]
[1755346089927,7.31226803,186.0,185.95,2.9]
[1755346090127,4.26226803,185.99,185.95,2.9]
[1755346090427,4.26226803,185.98,185.95,2.9]
[1755346090620,3.05,186.0,185.95,2.9]
[1755346090822,4.26295301,185.99,185.97,2.91260799]
[1755346091027,3.05,186.0,185.98,2.9]
[1755346091222,4.26114969,185.99,185.98,2.9]
[1755346091420,19.04260799,186.1,185.98,2.9]
[1755346091421,3.05,186.01,185.98,2.9]
[1755346091624,7.31248833,186.0,185.98,2.9]
[1755346091820,7.31248833,186.0,185.97,2.91260799]
[1755346091821,3.05,186.0,185.99,2.9]
[1755346092021,7.31250261,186.0,185.99,2.9]
[1755346092221,3.05,185.99,185.97,2.9]
[1755346092430,4.45197728,186.03,185.97,2.9]
[1755346092623,3.05,185.98,185.97,2.9]
[1755346093724,3.05,186.02,185.97,2.9]
[1755346094028,3.05,186.0,185.97,2.9]
[1755346094232,4.26167811,185.99,185.97,2.9]
[1755346094428,4.45197728,186.03,185.97,5.81260799]
[1755346094627,3.05,186.01,185.98,2.9]
[1755346094928,4.26176976,186.0,185.98,2.9]
[1755346095128,3.05,186.01,185.98,2.9]
[1755346095323,4.26201353,186.0,185.98,2.9]
[1755346095626,3.05,186.01,185.98,2.9]
[1755346095828,4.26219748,186.0,185.98,2.9]
[1755346096025,3.05,186.01,185.98,2.9]
[1755346096329,3.05,185.99,185.96,2.9]
[1755346096522,3.05,186.03,185.96,2.9]
[1755346096726,4.26238064,186.02,185.96,2.9]
[1755346097029,3.05,186.0,185.97,2.9]
[1755346097224,3.05,185.98,185.97,2.9]
[1755346097932,7.31313106,185.98,185.97,2.9]
[1755346099524,4.26313106,185.98,185.95,5.89260799]
[1755346099732,2.9,185.97,185.95,2.98]
[1755346099930,2.9,185.96,185.95,2.98]
[1755346100130,7.16281505,185.96,185.95,2.98]
[1755346101128,4.26281505,185.96,185.92,2.91260799]
[1755346101425,7.16281505,185.95,185.94,2.98]
[1755346105130,4.26281505,185.95,185.93,2.98]
[1755346105336,2.9,185.94,185.93,2.98]
[1755346105631,2.9,185.93,185.92,2.98]
[1755346105829,7.16129466,185.93,185.92,2.98]
[1755346106436,2.9,185.93,185.92,2.98]
[1755346106633,7.160352,185.93,185.92,2.98]
[1755346107432,2.9,185.92,185.89,2.91260799]
[1755346107737,2.9,185.92,185.89,5.89260799]
[1755346107940,2.9,185.92,185.89,2.98]
[1755346108139,2.9,185.92,185.86,2.91260799]
[1755346108438,2.9,185.92,185.9,2.98]
[1755346108638,4.45197728,185.96,185.9,2.98]
[1755346108840,2.9,185.91,185.9,2.98]
[1755346110740,2.9,185.96,185.9,2.98]
[1755346111034,4.25455965,185.95,185.9,2.98]
[1755346111246,4.25455965,185.94,185.9,2.98]
[1755346111539,2.9,185.96,185.92,2.98]
[1755346111743,7.15391414,185.95,185.92,2.98]
[1755346111934,4.25391414,185.94,185.92,2.98]
[1755346112136,2.9,185.95,185.92,2.98]
[1755346112337,2.9,185.95,185.92,11.26750799]
[1755346112537,2.9,185.99,185.93,2.98]
[1755346112738,2.9,185.97,185.93,2.98]
[1755346112939,4.25421854,185.96,185.93,2.98]
[1755346113138,7.15421854,185.95,185.94,2.98]
[1755346114837,4.25421854,185.95,185.92,2.91260799]
[1755346115039,2.9,185.98,185.9,2.98]
[1755346115240,2.9,185.96,185.9,2.98]
[1755346115439,2.9,185.94,185.89,2.91260799]
[1755346115640,2.9,185.94,185.92,2.98]
[1755346116139,2.9,185.98,185.92,2.98]
[1755346116441,2.9,185.96,185.93,2.98]
[1755346116642,7.15337587,185.95,185.9,2.98]
[1755346116839,4.45197728,185.99,185.9,2.98]
[1755346117040,2.9,185.97,185.9,2.98]
[1755346117242,2.9,185.95,185.9,2.98]
[1755346117746,2.9,185.94,185.91,2.98]
[1755346118238,2.9,185.94,185.92,2.98]
[1755346119747,4.45197728,185.99,185.92,2.98]
[1755346120045,5.93466747,186.02,185.92,2.98]
[1755346120046,2.9,185.97,185.92,2.98]
[1755346120344,2.9,185.95,185.92,2.98]
[1755346120947,7.35197728,185.99,185.92,2.98]
[1755346121245,2.9,185.97,185.92,2.98]
[1755346121447,2.9,185.95,185.9,2.98]
[1755346121639,2.9,185.93,185.89,2.91260799]
[1755346121841,2.9,185.93,185.91,2.98]
[1755346122138,2.9,185.92,185.91,2.98]
[1755346124647,2.9,185.91,185.9,2.98]
[1755346125944,2.9,185.91,185.88,2.98]
[1755346126146,2.9,185.91,185.87,2.98]
[1755346126343,4.2534856,185.9,185.87,2.98]
[1755346126651,2.9,185.91,185.87,2.98]
[1755346126848,2.9,185.89,185.87,2.98]
[1755346127254,2.9,185.89,185.84,2.98]
[1755346130149,3.14,185.94,185.84,2.98]
[1755346130447,3.14,185.92,185.84,2.98]
[1755346130652,3.14,185.9,185.84,2.98]
[1755346139164,3.14,185.88,185.84,2.98]
[1755346139364,3.14,185.88,185.81,2.97]
[1755346139864,3.14,185.86,185.81,2.97]
[1755346140068,3.14,185.84,185.78,2.97]
[1755346147674,2.91260799,185.87,185.7,177.44]
[1755346147675,3.14,185.82,185.75,2.97]
[1755346151773,4.23378314,185.81,185.75,2.97]
[1755346151973,4.45197728,185.84,185.73,2.97]
[1755346151974,3.14,185.79,185.73,2.97]
[1755346152276,3.14,185.77,185.71,2.97]
[1755346152469,4.23062108,185.78,185.71,2.97]
[1755346152470,3.14,185.75,185.71,2.97]
[1755346155881,3.14,185.75,185.66,2.91260799]
[1755346156174,3.14,185.75,185.72,2.97]
[1755346156379,3.14,185.75,185.67,2.97]
[1755346157276,3.14,185.75,185.69,2.97]
[1755346159574,2.91260799,185.77,185.59,44.0]
[1755346159575,3.04,185.73,185.62,2.91260799]
[1755346159781,3.04,185.71,185.63,3.04]
[1755346166682,4.20164569,185.7,185.58,120.17531428]
[1755346166883,3.04,185.68,185.6,3.04]
[1755346167186,3.04,185.68,185.61,5.3837]
[1755346167381,3.04,185.68,185.62,5.95260799]
[1755346167587,3.04,185.68,185.62,2.91260799]
[1755346167887,3.04,185.72,185.63,3.04]
[1755346168094,3.04,185.7,185.63,3.04]
[1755346168288,4.19912022,185.69,185.63,8.4231]
[1755346168494,3.04,185.7,185.64,3.04]
[1755346169491,3.04,185.7,185.64,5.383]
[1755346169687,4.45197728,185.74,185.65,3.04]
[1755346169889,3.04,185.69,185.65,3.04]
[1755346170092,3.04,185.73,185.64,3.04]
[1755346170295,3.04,185.71,185.65,2.91260799]
[1755346170590,3.04,185.76,185.68,5.95260799]
[1755346170788,7.23969778,185.75,185.69,3.04]
[1755346171093,366.17197728,185.8,185.72,3.04]
[1755346171394,3.04,185.78,185.72,3.04]
[1755346171596,3.04,185.76,185.72,3.04]
[1755346171988,3.04,185.74,185.72,3.04]
[1755346173191,366.17197728,185.8,185.72,3.04]
[1755346173192,3.04,185.79,185.72,3.04]
[1755346173393,3.04,185.77,185.72,3.04]
[1755346173589,4.19171452,185.76,185.72,3.04]
[1755346173793,3.04,185.74,185.71,3.04]
[1755346175396,3.04,185.74,185.72,3.04]
[1755346175596,3.04,185.78,185.72,3.04]
[1755346175798,3.04,185.76,185.72,3.04]
[1755346175999,3.04,185.74,185.68,5.3818]
[1755346176198,3.04,185.74,185.73,3.04]
[1755346176599,7.23529389,185.74,185.73,3.04]
[1755346177599,4.19529389,185.74,185.7,3.04]
[1755346177795,3.04,185.72,185.71,3.04]
[1755346179198,3.04,185.77,185.69,3.04]
[1755346179500,3.04,185.74,185.67,3.04]
[1755346179700,7.23972638,185.73,185.67,3.04]
[1755346179899,4.19972638,185.72,185.67,3.04]
[1755346180100,3.04,185.73,185.67,3.04]
[1755346180304,4.20041103,185.72,185.67,3.04]
[1755346180502,7.24041103,185.71,185.67,3.04]
[1755346180697,3.04,185.71,185.67,3.04]
[1755346180900,2.91260799,185.78,185.67,3.04]
[1755346180901,3.04,185.73,185.67,3.04]
[1755346181101,7.24178113,185.72,185.67,3.04]
[1755346181294,4.20178113,185.71,185.67,3.04]
[1755346181501,7.24178113,185.71,185.67,3.04]
[1755346181701,3.04,185.71,185.67,3.04]
[1755346182203,3.04,185.75,185.67,3.04]
[1755346182404,4.2045041,185.74,185.67,3.04]
[1755346182704,4.2045041,185.73,185.67,5.3821]
[1755346182900,4.2065953,185.72,185.68,3.04]
[1755346183200,3.04,185.72,185.68,3.04]
[1755346184703,3.04,185.75,185.68,3.04]
[1755346184902,3.04,185.73,185.68,3.04]
[1755346185102,3.04,185.71,185.69,3.04]
[1755346186099,3.04,185.7,185.69,3.04]
[1755346186298,4.45197728,185.76,185.69,3.04]
[1755346186500,3.04,185.74,185.68,3.04]
[1755346186702,3.04,185.72,185.67,2.91260799]
[1755346186901,4.21469888,185.71,185.69,3.04]
[1755346187103,3.04,185.7,185.69,3.04]
[1755346187302,3.04,185.75,185.69,3.04]
[1755346187505,4.21626522,185.74,185.69,3.04]
[1755346187804,3.04,185.72,185.69,3.04]
[1755346188004,4.21626522,185.71,185.7,3.04]
[1755346188205,7.25626522,185.71,185.7,3.04]
[1755346188703,7.25626522,185.71,185.67,2.91260799]
[1755346188908,7.39197728,185.75,185.68,3.16]
[1755346189112,7.39197728,185.73,185.65,3.16]
[1755346189309,2.94,185.71,185.65,3.16]
[1755346189611,4.21797005,185.7,185.65,3.16]
[1755346189811,2.94,185.68,185.65,3.16]
[1755346190306,2.94,185.71,185.65,3.16]
[1755346190609,4.22083024,185.7,185.65,3.16]
[1755346190808,7.39197728,185.75,185.68,3.16]
[1755346191106,4.22150563,185.74,185.68,3.16]
[1755346191313,4.22150563,185.73,185.71,3.16]
[1755346191613,4.22150563,185.72,185.71,3.16]
[1755346191809,4.45197728,185.78,185.71,3.16]
[1755346192109,4.22497592,185.77,185.73,2.91260799]
[1755346192306,4.22693598,185.76,185.74,3.16]
[1755346192507,7.16693598,185.75,185.74,3.16]
[1755346193099,4.22796666,185.75,185.74,3.16]
[1755346193300,2.94,185.77,185.74,3.16]
[1755346193611,7.1679685,185.76,185.75,3.16]
[1755346195405,2.94,185.76,185.75,3.16]
[1755346196010,7.17076106,185.76,185.75,3.16]
[1755346196711,2.94,185.75,185.74,3.16]
[1755346197212,2.94,185.77,185.74,3.16]
[1755346197409,2.94,185.76,185.75,3.16]
[1755346198706,137.81197728,185.81,185.75,3.16]
[1755346198707,133.36,185.81,185.75,3.16]
[1755346198907,2.94,185.79,185.75,3.16]
[1755346199108,4.23188655,185.78,185.75,3.16]
[1755346199511,2.94,185.79,185.75,3.16]
[1755346199711,2.94,185.77,185.76,3.16]
[1755346200314,2.94,185.77,185.74,3.16]
[1755346201015,2.94,185.77,185.73,3.16]
[1755346201323,4.23042248,185.76,185.7,2.91260799]